bitfinex/quotes_SOLUSD_20240914
["timestamp","ask_amount","ask_price","bid_price","bid_amount"]
[1726276823851,0.2573328,139.17,139.15,23.776884]
[1726276835960,0.2573328,139.17,139.13,0.12549]
[1726276835961,0.2573328,139.17,139.14,23.776884]
[1726276842671,0.2573328,139.17,139.15,15.72300207]
[1726276842851,0.2573328,139.17,139.16,38.2039099]
[1726276852359,0.2573328,139.17,139.16,23.776884]
[1726276856646,0.2573328,139.17,139.15,23.776884]
[1726276857946,0.2573328,139.17,139.13,14.6780059]
[1726276858151,0.2573328,139.17,139.14,23.902374]
[1726276858562,0.2573328,139.17,139.14,14.5525159]
[1726276858852,0.2573328,139.17,139.15,23.776884]
[1726276859676,0.2573328,139.17,139.15,25.11424905]
[1726276861666,0.2573328,139.17,139.15,39.54127495]
[1726276865689,0.2573328,139.17,139.16,0.25098]
[1726276865863,0.2573328,139.17,139.16,0.37647]
[1726276876092,0.2573328,139.17,139.16,14.8034959]
[1726276876285,0.2573328,139.17,139.16,38.5803799]
[1726276876868,0.2573328,139.17,139.16,58.5803799]
[1726276886284,0.2573328,139.21,139.17,43.776884]
[1726276886487,0.2573328,139.21,139.2,14.4270259]
[1726276886802,0.2573328,139.21,139.2,58.5803799]
[1726276891107,0.2573328,139.21,139.2,43.776884]
[1726276891399,0.2573328,139.21,139.19,23.776884]
[1726276896089,0.2573328,139.21,139.18,24.027864]
[1726276900512,0.2573328,139.21,139.19,38.5803799]
[1726276904412,0.2573328,139.21,139.19,24.153354]
[1726276904627,0.2573328,139.21,139.15,20.0]
[1726276905118,0.2573328,139.21,139.13,21.93902654]
[1726276905609,0.2573328,139.21,139.13,14.4270259]
[1726276906311,0.2573328,139.21,139.14,44.027864]
[1726276907319,0.2573328,139.21,139.14,20.0]
[1726276907606,6.542,139.2,139.13,20.0]
[1726276907822,15.9114,139.19,139.13,20.0]
[1726276908920,15.9114,139.19,139.14,24.027864]
[1726276913516,15.9114,139.19,139.14,38.4548899]
[1726276914099,15.9114,139.19,139.14,24.027864]
[1726276926936,15.9114,139.19,139.16,23.776884]
[1726276927139,15.9114,139.19,139.17,1.43602214]
[1726276927433,15.9114,139.19,139.16,23.776884]
[1726276927434,15.9114,139.19,139.18,1.43591896]
[1726276928327,15.9114,139.19,139.17,1.43591896]
[1726276928518,15.9114,139.19,139.18,1.43676249]
[1726276929428,15.9114,139.19,139.17,1.43676249]
[1726276929628,15.9114,139.19,139.18,25.21364648]
[1726276929839,0.2573328,139.21,139.18,23.776884]
[1726276930031,0.2573328,139.21,139.19,1.43660593]
[1726276930215,0.2573328,139.21,139.2,23.776884]
[1726276930415,0.2573328,139.21,139.2,25.2133144]
[1726276940818,0.2573328,139.21,139.2,44.027864]
[1726276941025,0.2573328,139.21,139.2,58.5803799]
[1726276942333,0.2573328,139.21,139.2,43.902374]
[1726276942534,0.2573328,139.21,139.2,43.776884]
[1726276942935,0.2573328,139.21,139.2,23.776884]
[1726276943730,0.2573328,139.21,139.19,14.4270259]
[1726276943731,0.2573328,139.21,139.14,6.14494132]
[1726276944024,0.2573328,139.21,139.14,20.57196722]
[1726276945024,0.2573328,139.21,139.15,24.027864]
[1726276945928,0.2573328,139.21,139.17,23.776884]
[1726276947525,0.2573328,139.21,139.18,1.43677234]
[1726276947723,0.2573328,139.21,139.18,1.43671259]
[1726276950529,0.2573328,139.21,139.19,23.776884]
[1726276963061,0.2573328,139.21,139.16,0.12549]
[1726276963267,0.2573328,139.21,139.16,20.12549]
[1726276963648,0.2573328,139.21,139.17,23.776884]
[1726276966274,0.2573328,139.21,139.17,25.21330125]
[1726276966566,0.2573328,139.21,139.18,1.43631404]
[1726276967063,0.2573328,139.21,139.17,38.2039099]
[1726276972970,0.2573328,139.21,139.17,23.776884]
[1726276979285,0.2573328,139.21,139.18,0.25098]
[1726276979482,0.2573328,139.21,139.18,0.37647]
[1726276984192,0.2573328,139.21,139.19,23.776884]
[1726276988774,0.2573328,139.21,139.19,38.2039099]
[1726276990083,0.2573328,139.21,139.2,25.10627734]
[1726276990472,0.2573328,139.21,139.2,25.48435828]
[1726276990775,0.2573328,139.21,139.2,45.48435828]
[1726276990971,0.2573328,139.21,139.2,59.91138418]
[1726276992992,0.2573328,139.21,139.2,58.5803799]
[1726277025200,0.2573328,139.21,139.2,60.01594304]
[1726277025904,0.2573328,139.21,139.2,58.5803799]
[1726277036038,0.2573328,139.21,139.2,44.153354]
[1726277036345,0.2573328,139.21,139.2,58.5803799]
[1726277040150,0.2573328,139.25,139.24,38.4548899]
[1726277040445,0.2573328,139.25,139.24,38.5803799]
[1726277043451,0.2573328,139.25,139.24,58.5803799]
[1726277064063,0.2573328,139.3,139.25,44.027864]
[1726277064240,0.2573328,139.3,139.29,58.4548899]
[1726277064564,0.2573328,139.3,139.29,58.5803799]
[1726277081984,0.2573328,139.3,139.29,44.153354]
[1726277082656,0.2573328,139.3,139.29,58.5803799]
[1726277091264,0.2573328,139.3,139.29,44.153354]
[1726277091463,0.2573328,139.3,139.29,58.5803799]
[1726277098992,0.2573328,139.3,139.29,44.153354]
[1726277100488,0.2573328,139.3,139.29,44.027864]
[1726277101787,0.2573328,139.3,139.29,44.153354]
[1726277108103,0.2573328,139.3,139.29,24.153354]
[1726277109902,0.2573328,139.3,139.29,0.37647]
[1726277115900,0.2573328,139.3,139.29,14.8034959]
[1726277116289,0.2573328,139.3,139.29,38.5803799]
[1726277116604,0.2573328,139.3,139.29,24.153354]
[1726277119601,0.2573328,139.3,139.29,0.37647]
[1726277124605,0.2573328,139.3,139.29,25.51812993]
[1726277124808,0.2573328,139.3,139.29,45.51812993]
[1726277125215,0.2573328,139.3,139.29,59.94515583]
[1726277127413,0.2573328,139.3,139.29,45.51812993]
[1726277127621,0.2573328,139.3,139.29,59.94515583]
[1726277139627,0.2573328,139.3,139.29,58.5803799]
[1726277141131,0.2573328,139.34,139.3,44.027864]
[1726277141316,0.2573328,139.34,139.33,20.0]
[1726277141516,0.2573328,139.34,139.33,59.94466603]
[1726277142522,0.2573328,139.34,139.33,58.5803799]
[1726277156935,0.2573328,139.34,139.33,44.153354]
[1726277157137,0.2573328,139.34,139.33,58.5803799]
[1726277167745,0.2573328,139.34,139.33,34.4270259]
[1726277169166,0.2573328,139.34,139.33,58.4548899]
[1726277169359,0.2573328,139.34,139.33,58.5803799]
[1726277170256,0.2573328,139.38,139.34,24.027864]
[1726277170460,0.2573328,139.38,139.37,34.6780059]
[1726277170661,0.2573328,139.38,139.37,58.5803799]
[1726277175577,0.2573328,139.38,139.34,14.4270259]
[1726277176068,0.2573328,139.38,139.3,6.1766]
[1726277176252,0.2573328,139.38,139.33,14.4270259]
[1726277177955,0.2573328,139.38,139.34,20.0]
[1726277178571,0.2573328,139.38,139.35,0.25098]
[1726277179782,0.2573328,139.38,139.35,24.027864]
[1726277183688,0.2573328,139.38,139.34,23.776884]
[1726277184173,0.2573328,139.38,139.33,44.027864]
[1726277185563,0.2573328,139.38,139.3,13.64658481]
[1726277185784,0.2573328,139.38,139.3,21.92866939]
[1726277186090,0.2573328,139.38,139.31,14.4270259]
[1726277186884,0.2573328,139.38,139.32,44.153354]
[1726277187485,0.2573328,139.38,139.32,58.5803799]
[1726277190592,0.2573328,139.38,139.32,44.153354]
[1726277191294,0.2573328,139.38,139.32,58.5803799]
[1726277192293,0.2573328,139.38,139.33,14.4270259]
[1726277192670,0.2573328,139.38,139.34,23.776884]
[1726277200200,0.2573328,139.38,139.33,23.776884]
[1726277203973,0.2573328,139.38,139.33,38.2039099]
[1726277204595,0.2573328,139.38,139.33,23.776884]
[1726277206299,0.2573328,139.38,139.37,58.4548899]
[1726277206503,0.2573328,139.38,139.37,58.5803799]
[1726277209608,0.2573328,139.38,139.37,44.153354]
[1726277209782,0.2573328,139.38,139.37,24.153354]
[1726277213405,0.2573328,139.38,139.37,44.153354]
[1726277213917,0.2573328,139.38,139.37,58.5803799]
[1726277222611,0.2573328,139.38,139.37,38.5803799]
[1726277222981,0.2573328,139.38,139.37,58.5803799]
[1726277227592,0.2573328,139.38,139.37,44.153354]
[1726277227893,0.2573328,139.38,139.37,58.5803799]
[1726277230620,0.2573328,139.38,139.37,44.153354]
[1726277231018,0.2573328,139.38,139.37,58.5803799]
[1726277237724,15.6789,139.44,139.38,24.027864]
[1726277237725,0.0146656,139.42,139.38,24.027864]
[1726277237909,0.0146656,139.42,139.39,0.12549]
[1726277239818,16.4415,139.41,139.34,7.49997864]
[1726277240022,16.4415,139.41,139.35,20.0]
[1726277240023,22.4837,139.41,139.35,20.0]
[1726277240324,22.4837,139.41,139.35,34.4270259]
[1726277241210,22.4837,139.41,139.37,0.25098]
[1726277241628,0.0146656,139.42,139.38,23.776884]
[1726277241930,0.0146656,139.42,139.4,23.776884]
[1726277242310,0.0146656,139.42,139.41,39.37648244]
[1726277242623,0.0146656,139.42,139.41,39.50197244]
[1726277243429,0.0146656,139.42,139.41,38.5803799]
[1726277245630,0.0146656,139.42,139.41,24.153354]
[1726277245822,0.0146656,139.42,139.41,25.23080812]
[1726277247327,0.0146656,139.42,139.41,59.65783402]
[1726277248423,0.0146656,139.42,139.41,58.5803799]
[1726277249031,0.0146656,139.42,139.41,44.153354]
[1726277251707,0.0146656,139.42,139.41,45.23026711]
[1726277252923,0.0146656,139.42,139.41,58.5803799]
[1726277268048,0.0146656,139.42,139.41,20.0]
[1726277268255,0.0146656,139.42,139.39,14.4270259]
[1726277268436,0.0146656,139.42,139.41,20.0]
[1726277269441,0.0146656,139.42,139.41,44.153354]
[1726277275951,0.0146656,139.42,139.41,58.5803799]
[1726277281940,0.0146656,139.42,139.41,44.153354]
[1726277282140,0.0146656,139.42,139.41,58.5803799]
[1726277282457,0.0146656,139.42,139.41,59.0898099]
[1726277287576,0.0146656,139.42,139.41,44.662784]
[1726277287748,0.0146656,139.42,139.41,59.0898099]
[1726277289064,0.0146656,139.42,139.41,44.662784]
[1726277289370,0.0146656,139.42,139.41,59.0898099]
[1726277306789,0.0146656,139.42,139.41,44.662784]
[1726277307189,0.0146656,139.42,139.41,59.0898099]
[1726277311000,0.2573328,139.46,139.45,34.6780059]
[1726277311300,0.2573328,139.46,139.45,58.5803799]
[1726277316905,0.2573328,139.5,139.46,44.027864]
[1726277317093,0.2573328,139.54,139.46,44.027864]
[1726277317094,0.2573328,139.54,139.5,43.902374]
[1726277317295,0.2573328,139.54,139.53,38.4548899]
[1726277317609,0.2573328,139.54,139.53,38.5803799]
[1726277321193,0.2573328,139.54,139.51,23.776884]
[1726277321399,0.2573328,139.54,139.52,14.5525159]
[1726277332198,0.2573328,139.54,139.53,14.4270259]
[1726277336306,0.2573328,139.54,139.52,14.5525159]
[1726277338402,14.4534328,139.58,139.52,14.5525159]
[1726277341421,14.4534328,139.58,139.52,14.4270259]
[1726277342515,14.4534328,139.58,139.49,24.027864]
[1726277342720,14.4534328,139.58,139.52,14.4270259]
[1726277343606,14.4534328,139.58,139.5,0.12549]
[1726277343807,14.4534328,139.58,139.52,14.4270259]
[1726277346426,14.4534328,139.58,139.51,14.4270259]
[1726277347196,14.4534328,139.58,139.52,14.4270259]
[1726277347505,14.4534328,139.58,139.53,14.4270259]
[1726277347713,14.4534328,139.58,139.54,14.4270259]
[1726277348011,14.4534328,139.58,139.53,14.4270259]
[1726277348925,14.4534328,139.58,139.52,14.4270259]
[1726277350426,14.4534328,139.58,139.53,23.776884]
[1726277350925,14.4534328,139.58,139.53,38.2039099]
[1726277356012,14.4534328,139.58,139.55,14.4270259]
[1726277361129,14.4534328,139.58,139.53,23.776884]
[1726277361130,14.4534328,139.58,139.54,14.4270259]
[1726277362624,14.4534328,139.58,139.55,14.4270259]
[1726277362821,14.4534328,139.58,139.54,14.4270259]
[1726277363630,0.2573328,139.59,139.55,14.4270259]
[1726277363811,0.2573328,139.59,139.56,14.4270259]
[1726277365318,0.2573328,139.59,139.58,38.2039099]
[1726277369750,0.2573328,139.59,139.58,23.776884]
[1726277370128,0.2573328,139.59,139.58,38.2039099]
[1726277370845,0.2573328,139.59,139.58,23.776884]
[1726277381661,0.2573328,139.59,139.57,24.153354]
[1726277383033,0.2573328,139.59,139.57,38.5803799]
[1726277384667,0.2573328,139.59,139.53,29.99106392]
[1726277384859,0.2573328,139.59,139.57,14.4270259]
[1726277386056,0.2573328,139.59,139.58,23.776884]
[1726277392955,0.2573328,139.59,139.55,34.4270259]
[1726277394159,0.2573328,139.59,139.56,23.776884]
[1726277399459,0.2573328,139.59,139.56,38.2039099]
[1726277401158,0.2573328,139.59,139.56,14.4270259]
[1726277401365,0.2573328,139.59,139.55,34.4270259]
[1726277402659,0.2573328,139.59,139.55,20.0]
[1726277403188,0.2573328,139.59,139.54,38.4548899]
[1726277408482,22.2586328,139.59,139.52,7.43753836]
[1726277408685,22.2586328,139.59,139.51,14.4270259]
[1726277410280,22.2586328,139.59,139.52,23.776884]
[1726277411288,22.2586328,139.59,139.49,20.25098]
[1726277411462,22.2586328,139.59,139.51,14.4270259]
[1726277415974,22.2586328,139.59,139.5,0.12549]
[1726277416184,22.2586328,139.59,139.51,23.776884]
[1726277416483,22.2586328,139.59,139.51,38.2039099]
[1726277418166,22.2586328,139.59,139.5,0.12549]
[1726277418167,15.72888,139.58,139.48,7.44961629]
[1726277418393,15.72888,139.58,139.5,14.4270259]
[1726277418692,15.72888,139.58,139.49,34.4270259]
[1726277419764,15.72888,139.58,139.49,20.0]
[1726277420774,15.4779,139.57,139.49,20.0]
[1726277420974,6.5234,139.56,139.49,23.776884]
[1726277421177,6.5234,139.56,139.48,7.44961629]
[1726277421178,15.4779,139.55,139.48,7.44961629]
[1726277421382,15.4779,139.55,139.47,14.4270259]
[1726277421691,15.4779,139.55,139.46,20.8608561]
[1726277421922,15.4779,139.55,139.46,14.4270259]
[1726277422265,15.4779,139.55,139.51,2.0]
[1726277425380,6.5742,139.54,139.51,2.0]
[1726277425868,16.3598,139.53,139.51,2.0]
[1726277473030,37.8998,139.53,139.51,2.0]
[1726277475620,44.1049,139.53,139.51,2.0]
[1726277476139,45.693354,139.52,139.51,2.0]
[1726277478932,45.693354,139.52,139.44,0.2573328]
[1726277479339,17.68627401,139.54,139.44,6.4247328]
[1726277479522,39.22627401,139.54,139.44,6.4247328]
[1726277479727,37.9761,139.54,139.44,6.4247328]
[1726277480846,45.693354,139.53,139.44,6.4247328]
[1726277482656,45.693354,139.53,139.44,0.2573328]
[1726277484957,21.79098,139.53,139.44,0.2573328]
[1726277489249,21.79098,139.53,139.44,1.08015769]
[1726277489463,21.79098,139.53,139.44,0.2573328]
[1726277494244,21.54,139.51,139.44,0.2573328]
[1726277495262,16.4438,139.5,139.44,0.2573328]
[1726277495448,37.9838,139.5,139.44,0.2573328]
[1726277501754,45.567864,139.49,139.44,0.2573328]
[1726277517197,16.4438,139.5,139.44,0.2573328]
[1726277522200,37.9838,139.5,139.44,0.2573328]
[1726277523775,0.12549,139.49,139.44,0.2573328]
[1726277523982,21.54,139.48,139.44,0.2573328]
[1726277537210,21.66549,139.49,139.44,0.2573328]
[1726277538708,21.54,139.49,139.44,0.2573328]
[1726277567340,21.79098,139.5,139.44,0.2573328]
[1726277569317,23.776884,139.49,139.44,0.2573328]
[1726277569637,21.54,139.48,139.44,0.2573328]
[1726277569940,21.79098,139.5,139.44,0.2573328]
[1726277570234,21.54,139.48,139.44,0.2573328]
[1726277574336,23.776884,139.49,139.44,0.2573328]
[1726277574535,21.54,139.48,139.44,0.2573328]
[1726277579250,21.79098,139.5,139.44,0.2573328]
[1726277579552,21.54,139.48,139.44,0.2573328]
[1726277581112,21.66549,139.49,139.44,0.2573328]
[1726277581336,21.54,139.49,139.44,0.2573328]
[1726277582542,21.54,139.48,139.44,0.2573328]
[1726277584450,23.776884,139.49,139.44,0.2573328]
[1726277584638,21.54,139.48,139.44,0.2573328]
[1726277591451,21.91647,139.5,139.44,0.2573328]
[1726277591752,21.54,139.48,139.44,0.2573328]
[1726277595047,21.54,139.46,139.44,0.2573328]
[1726277603169,21.54,139.46,139.41,0.50943]
[1726277604367,0.12549,139.45,139.41,0.50943]
[1726277606050,21.54,139.44,139.41,0.50943]
[1726277606746,21.54,139.47,139.41,0.50943]
[1726277606952,21.54,139.47,139.42,6.0922]
[1726277607171,21.54,139.5,139.42,21.3576]
[1726277608351,21.54,139.51,139.42,21.3576]
[1726277608874,21.54,139.49,139.42,21.3576]
[1726277609843,0.25098,139.5,139.42,21.3576]
[1726277610848,21.54,139.51,139.42,21.3576]
[1726277611373,21.54,139.51,139.42,21.78593455]
[1726277611569,0.12549,139.51,139.42,21.78593455]
[1726277611773,0.12549,139.51,139.42,21.3576]
[1726277612151,1.24971369,139.52,139.44,15.2654]
[1726277612362,0.2573328,139.54,139.44,15.2654]
[1726277613674,0.12549,139.53,139.44,15.2654]
[1726277613877,0.25098,139.53,139.44,15.2654]
[1726277616384,24.1597068,139.54,139.45,6.0922]
[1726277630107,24.1597068,139.54,139.46,15.8456]
[1726277638793,0.25098,139.53,139.46,15.8456]
[1726277640688,24.0342168,139.54,139.46,15.8456]
[1726277647915,24.153354,139.53,139.46,15.8456]
[1726277668333,31.320254,139.53,139.46,15.8456]
[1726277669737,24.027864,139.51,139.46,15.8456]
[1726277670033,0.12549,139.5,139.46,15.8456]
[1726277678218,0.12549,139.49,139.46,15.8456]
[1726277678418,0.25098,139.49,139.46,15.8456]
[1726277680843,0.25098,139.49,139.45,6.0922]
[1726277688360,24.027864,139.49,139.45,6.0922]
[1726277689447,0.25098,139.49,139.45,6.0922]
[1726277708874,0.12549,139.48,139.43,15.5471]
[1726277709172,24.027864,139.48,139.43,15.5471]
[1726277712274,45.567864,139.48,139.43,15.5471]
[1726277713065,0.12549,139.47,139.43,15.5471]
[1726277713265,0.25098,139.47,139.43,15.5471]
[1726277714073,0.25098,139.46,139.43,15.5471]
[1726277714369,0.12549,139.45,139.41,7.04593]
[1726277714569,0.25098,139.45,139.41,7.04593]
[1726277714778,21.79098,139.45,139.41,7.04593]
[1726277715148,45.567864,139.44,139.41,7.04593]
[1726277715363,45.442374,139.44,139.41,7.04593]
[1726277715957,22.9160187,139.46,139.41,7.04593]
[1726277716152,0.25098,139.45,139.41,7.04593]
[1726277716357,24.027864,139.45,139.41,7.04593]
[1726277720075,1.25048994,139.46,139.41,7.04593]
[1726277720372,2.83582611,139.49,139.41,7.04593]
[1726277720574,1.2503686,139.49,139.41,7.04593]
[1726277721777,45.713354,139.48,139.41,7.04593]
[1726277726671,52.882854,139.48,139.41,7.04593]
[1726277727085,21.56,139.46,139.41,7.04593]
[1726277727383,45.713354,139.45,139.41,7.04593]
[1726277729479,45.713354,139.45,139.41,0.50943]
[1726277734985,52.884354,139.45,139.41,0.50943]
[1726277735292,52.884354,139.45,139.36,0.2573328]
[1726277735293,0.12549,139.4,139.36,0.2573328]
[1726277735589,21.56,139.39,139.36,0.2573328]
[1726277740079,0.37647,139.4,139.36,0.2573328]
[1726277740298,21.93647,139.4,139.36,0.2573328]
[1726277746098,25.02790057,139.41,139.36,0.2573328]
[1726277746396,1.25101657,139.41,139.36,0.2573328]
[1726277747602,1.25101657,139.41,139.37,21.854]
[1726277747771,29.05988399,139.46,139.38,1.43366503]
[1726277747772,21.56,139.46,139.38,1.43366503]
[1726277748187,22.81054219,139.47,139.38,1.43366503]
[1726277748908,45.713354,139.46,139.38,1.43366503]
[1726277749381,22.81054219,139.47,139.38,1.43366503]
[1726277750604,22.81054219,139.47,139.37,21.854]
[1726277750605,24.153354,139.46,139.37,21.854]
[1726277758488,24.153354,139.46,139.38,1.43457235]
[1726277760309,24.153354,139.46,139.37,21.854]
[1726277763211,24.153354,139.46,139.38,1.43386084]
[1726277763792,0.25098,139.46,139.39,22.6907]
[1726277763990,0.12549,139.46,139.39,22.6907]
[1726277764305,1.25054219,139.47,139.4,1.43365511]
[1726277764615,0.2573328,139.5,139.41,22.6907]
[1726277764795,1.50766867,139.5,139.41,22.6907]
[1726277766318,0.12549,139.49,139.41,22.6907]
[1726277766697,0.12549,139.49,139.42,1.43351498]
[1726277767495,24.0342168,139.5,139.42,1.43423283]
[1726277767815,24.0342168,139.5,139.41,22.6907]
[1726277773022,0.2573328,139.5,139.41,22.6907]
[1726277777226,24.0342168,139.5,139.41,22.6907]
[1726277777820,0.12549,139.49,139.41,22.6907]
[1726277777997,0.25098,139.49,139.41,22.6907]
[1726277786229,21.68549,139.48,139.41,22.6907]
[1726277786438,0.12549,139.47,139.41,22.6907]
[1726277786631,45.587864,139.49,139.41,22.6907]
[1726277786947,21.81098,139.49,139.42,1.4333482]
[1726277790244,21.81098,139.49,139.41,22.6907]
[1726277790827,0.25098,139.49,139.42,1.43303977]
[1726277791039,0.2573328,139.5,139.44,15.5386]
[1726277792330,45.5942168,139.5,139.44,15.5386]
[1726277792729,0.12549,139.49,139.44,15.5386]
[1726277793448,24.0342168,139.5,139.44,15.5386]
[1726277793629,45.5942168,139.5,139.44,15.5386]
[1726277797553,0.12549,139.49,139.44,15.5386]
[1726277800843,0.37647,139.49,139.44,15.5386]
[1726277801041,45.713354,139.49,139.44,15.5386]
[1726277803134,46.96382354,139.49,139.44,15.5386]
[1726277806852,54.13282354,139.49,139.44,15.5386]
[1726277807358,46.96382354,139.49,139.44,15.5386]
[1726277816359,54.13282354,139.49,139.43,6.2888]
[1726277817452,61.63396338,139.49,139.43,6.2888]
[1726277820674,54.46496338,139.49,139.43,6.2888]
[1726277821661,46.96382354,139.49,139.43,6.2888]
[1726277833082,46.96382354,139.49,139.44,16.5556]
[1726277838467,1.25046954,139.49,139.44,16.5556]
[1726277838672,0.2573328,139.5,139.44,16.5556]
[1726277847871,0.2573328,139.5,139.45,6.2913]
[1726277848292,0.2573328,139.5,139.46,15.8186]
[1726277848986,0.2573328,139.5,139.46,17.25118396]
[1726277849485,0.2573328,139.5,139.47,6.2913]
[1726277850400,0.2573328,139.5,139.46,17.25118395]
[1726277850401,135.512902,139.55,139.48,20.0]
[1726277850571,135.512902,139.55,139.53,0.12549]
[1726277850885,135.512902,139.55,139.54,30.319164]
[1726277851090,135.512902,139.55,139.54,30.444654]
[1726277851664,128.846302,139.55,139.54,50.444654]
[1726277858716,122.179702,139.55,139.54,64.8716799]
[1726277859897,0.2573328,139.63,139.54,64.8716799]
[1726277859898,0.2573328,139.63,139.57,20.25098]
[1726277860079,0.2573328,139.63,139.58,66.76670414]
[1726277860385,0.2573328,139.63,139.58,110.45758352]
[1726277860587,0.2573328,139.63,139.59,20.0]
[1726277860798,0.2573328,139.63,139.58,110.45758352]
[1726277860799,0.2573328,139.63,139.62,34.4270259]
[1726277860990,0.2573328,139.63,139.62,34.5525159]
[1726277861304,269.9408,139.73,139.62,34.5525159]
[1726277861305,269.7127984,139.73,139.63,20.0]
[1726277861505,15.8408,139.73,139.64,14.4270259]
[1726277861679,15.8408,139.73,139.65,20.12549]
[1726277862604,15.8408,139.73,139.65,0.12549]
[1726277862796,15.8408,139.73,139.65,23.902374]
[1726277865784,15.8408,139.73,139.65,0.37647]
[1726277866813,15.8408,139.73,139.64,43.776884]
[1726277867102,1.41702611,139.75,139.66,0.12549]
[1726277867286,1.41702611,139.75,139.66,0.25098]
[1726277867287,0.1687641,139.75,139.66,0.25098]
[1726277867486,0.1687641,139.75,139.66,20.25098]
[1726277868483,0.1687641,139.75,139.67,1.43082628]
[1726277868683,0.1687641,139.75,139.68,1.43072384]
[1726277869718,0.1687641,139.75,139.67,1.43072384]
[1726277869895,0.1687641,139.75,139.68,1.43062141]
[1726277870297,0.1687641,139.75,139.66,24.027864]
[1726277871604,0.1687641,139.75,139.67,1.43000683]
[1726277871799,0.1687641,139.75,139.66,24.027864]
[1726277874214,0.25098,139.74,139.65,0.7232]
[1726277874516,0.12549,139.72,139.62,0.8544186]
[1726277874718,0.12549,139.72,139.62,15.2814445]
[1726277874911,23.776884,139.73,139.63,20.0]
[1726277879322,23.776884,139.73,139.64,20.0]
[1726277880705,23.776884,139.73,139.63,23.776884]
[1726277880706,0.12549,139.72,139.63,20.0]
[1726277881021,0.12549,139.72,139.62,15.5324245]
[1726277881022,0.25098,139.72,139.62,1.1053986]
[1726277882315,0.25098,139.72,139.62,0.3821986]
[1726277883516,0.25098,139.72,139.62,14.8092245]
[1726277883914,0.25098,139.72,139.63,20.0]
[1726277888515,0.25098,139.72,139.64,1.30179386]
[1726277888721,0.25098,139.72,139.65,1.30170064]
[1726277889805,0.25098,139.72,139.64,1.30236371]
[1726277890025,0.25098,139.72,139.65,1.30227046]
[1726277890530,0.25098,139.72,139.63,20.0]
[1726277892936,0.12549,139.72,139.64,1.3601056]
[1726277893529,0.12549,139.72,139.65,1.36026193]
[1726277894427,0.12549,139.72,139.66,1.3604254]
[1726277894731,0.12549,139.72,139.64,1.36042541]
[1726277894933,0.12549,139.72,139.65,1.39001751]
[1726277895311,23.776884,139.73,139.65,1.39001751]
[1726277895911,22.55638,139.74,139.65,1.39001751]
[1726277897528,22.55638,139.74,139.63,0.25098]
[1726277897729,22.55638,139.74,139.64,0.12549]
[1726277899516,22.3054,139.74,139.65,23.902374]
[1726277899833,22.3054,139.74,139.66,1.39516579]
[1726277900223,22.3054,139.74,139.65,23.902374]
[1726277900918,22.3054,139.74,139.65,0.12549]
[1726277901116,22.3054,139.74,139.64,23.902374]
[1726277902826,24.027864,139.73,139.64,0.12549]
[1726277908442,24.027864,139.73,139.63,44.027864]
[1726277909446,24.027864,139.73,139.63,20.12549]
[1726277916128,24.027864,139.73,139.63,20.0]
[1726277917444,0.12549,139.72,139.63,20.0]
[1726277919033,0.12549,139.72,139.62,0.1312186]
[1726277919448,21.1467,139.71,139.62,0.1312186]
[1726277919755,0.12549,139.69,139.62,0.1312186]
[1726277920252,0.25098,139.69,139.62,0.1312186]
[1726277921841,0.12549,139.67,139.62,0.1312186]
[1726277922857,22.2886,139.66,139.62,0.1312186]
[1726277923732,22.2886,139.66,139.58,20.2999827]
[1726277923733,22.2886,139.66,139.61,0.260202]
[1726277926257,22.2886,139.71,139.61,0.260202]
[1726277926464,22.2886,139.71,139.61,14.6872279]
[1726277926752,22.2886,139.71,139.62,20.0]
[1726277934164,45.587864,139.73,139.62,20.0]
[1726277934374,0.12549,139.72,139.62,0.12549]
[1726277934575,0.12549,139.72,139.62,0.25098]
[1726277943089,6.0699,139.71,139.62,0.25098]
[1726277943582,16.5599,139.7,139.61,34.6872279]
[1726277943787,16.5599,139.7,139.61,20.260202]
[1726277944487,23.902374,139.69,139.61,0.260202]
[1726277944677,16.5599,139.66,139.61,0.260202]
[1726277952287,12.5599,139.66,139.61,0.260202]
[1726277953292,6.0699,139.68,139.61,0.260202]
[1726277953590,6.0699,139.68,139.61,20.260202]
[1726277957995,6.0699,139.68,139.62,0.12549]
[1726277958295,6.0699,139.68,139.63,20.0]